[Event "19th IPCA WCC 2019"]
[Site "Ruzomberok"]
[Date "2019.07.02"]
[Round "5.11"]
[White "Glazar, Domagoj"]
[Black "Gerasimova, Svetlana"]
[Result "1-0"]
[ECO "E71"]
[WhiteElo "2153"]
[BlackElo "1913"]
[Annotator "NA"]
[PlyCount "35"]
[EventDate "2019.06.28"]
[EventType "swiss"]
[EventCountry "SVK"]
[SourceTitle "playchess.com"]
[Source "ChessBase"]
[SourceQuality "1"]
[TimeControl "5400+30"]

1. d4 {[%emt 0:03:12]} Nf6 {[%emt 0:00:00]} 2. c4 {[%emt 0:00:14]} g6 {[%emt 0:00:00]} 3. Nc3 {[%emt 0:00:10]} Bg7 {[%emt 0:00:00]} 4. e4 {[%emt 0:00:10]} d6 {[%emt 0:00:00]} 5. h3 {[%emt 0:00:29]} O-O {[%emt 0:00:02]} 6. Be3 {[%emt 0:00:24]} Nbd7 {[%emt 0:03:01]} 7. g4 {[%emt 0:01:36]} e5 {[%emt 0:01:38]} 8. d5 {[%emt 0:00:14]} Nc5 {[%emt 0:04:25]} 9. Qc2 {[%emt 0:04:09]} a5 {[%emt 0:00:04]} 10. Nge2 {[%emt 0:00:28]} b6 {[%emt 0:01:38]} 11. Ng3 {[%emt 0:00:22]} h5 {[%emt 0:14:27]} 12. gxh5 {[%emt 0:10:46]} Nxh5 {[%emt 0:00:55]} 13. Nxh5 {[%emt 0:00:40]} gxh5 {[%emt 0:00:01]} 14. Rg1 {[%emt 0:02:17]} Kh8 {[%emt 0:10:44]} 15. Qe2 {[%emt 0:02:37]} f5 {[%emt 0:06:04]} 16. Qxh5+ Kg8 17. Rxg7+ {[%emt 0:01:00]} Kxg7 {[%emt 0:00:09]} 18. Bh6+ {[%emt 0:00:08]} 1-0

[Event "19th IPCA WCC 2019"]
[Site "Ruzomberok"]
[Date "2019.07.02"]
[Round "5.12"]
[White "Zavarsky, Juraj"]
[Black "Sovietova, Kateryna"]
[Result "1-0"]
[ECO "B21"]
[WhiteElo "2000"]
[BlackElo "1279"]
[Annotator "NA"]
[PlyCount "101"]
[EventDate "2019.06.28"]
[EventType "swiss"]
[EventCountry "SVK"]
[SourceTitle "playchess.com"]
[Source "ChessBase"]
[SourceQuality "1"]
[TimeControl "5400+30"]

1. e4 {[%emt 0:00:00]} c5 {[%emt 0:00:54]} 2. d4 {[%emt 0:00:55]} cxd4 {[%emt 0:00:43]} 3. c3 {[%emt 0:00:20]} Nc6 {[%emt 0:04:18]} 4. cxd4 {[%emt 0:00:31]} d6 {[%emt 0:00:34]} 5. Nc3 {[%emt 0:00:48]} a6 {[%emt 0:02:49]} 6. Be2 {[%emt 0:04:39]} Qc7 {[%emt 0:02:58]} 7. Nf3 {[%emt 0:05:49]} e6 {[%emt 0:04:21]} 8. O-O {[%emt 0:01:02]} Be7 {[%emt 0:00:21]} 9. Be3 {[%emt 0:16:10]} Nf6 {[%emt 0:02:20]} 10. d5 {[%emt 0:06:26]} exd5 {[%emt 0:03:43]} 11. exd5 {[%emt 0:00:18]} Ne5 {[%emt 0:01:34]} 12. Rc1 {[%emt 0:02:29]} Qd7 {[%emt 0:13:02]} 13. Na4 {[%emt 0:01:28]} Nxf3+ {[%emt 0:12:28]} 14. Bxf3 {[%emt 0:00:36]} Qf5 {[%emt 0:05:01]} 15. Nb6 {[%emt 0:00:48]} Rb8 {[%emt 0:01:26]} 16. Nxc8 {[%emt 0:07:41]} Rxc8 {[%emt 0:00:37]} 17. Qa4+ {[%emt 0:00:08]} b5 {[%emt 0:06:38]} 18. Qxa6 {[%emt 0:02:28]} O-O {[%emt 0:00:55]} 19. Qxb5 {[%emt 0:01:46]} Rb8 {[%emt 0:02:08]} 20. Qe2 {[%emt 0:01:36]} Nxd5 {[%emt 0:02:14]} 21. Bxd5 {[%emt 0:05:03]} Qxd5 {[%emt 0:01:32]} 22. b3 {[%emt 0:00:54]} Bg5 {[%emt 0:08:32]} 23. Rcd1 {[%emt 0:06:57]} Qe5 {[%emt 0:04:20]} 24. f4 {[%emt 0:00:31]} Bxf4 {[%emt 0:04:22]} 25. Rxf4 {[%emt 0:00:05]} Rfe8 {[%emt 0:00:50]} 26. Rf3 {[%emt 0:00:12]} Rbc8 {[%emt 0:03:52]} 27. Qf2 {[%emt 0:02:49]} f6 {[%emt 0:04:34]} 28. Qd2 {[%emt 0:02:54]} Rcd8 {[%emt 0:05:05]} 29. Qd5+ {[%emt 0:00:31]} Qxd5 {[%emt 0:00:11]} 30. Rxd5 {[%emt 0:00:07]} Re6 {[%emt 0:00:38]} 31. Bf4 {[%emt 0:00:46]} Kf7 {[%emt 0:00:23]} 32. Re3 {[%emt 0:00:49]} Rxe3 {[%emt 0:00:14]} 33. Bxe3 {[%emt 0:00:05]} Re8 {[%emt 0:01:02]} 34. Kf2 {[%emt 0:00:08]} Ke6 {[%emt 0:00:17]} 35. Rd2 {[%emt 0:00:42]} Rc8 {[%emt 0:00:35]} 36. Bf4 {[%emt 0:01:19]} Rc6 {[%emt 0:00:46]} 37. Rxd6+ {[%emt 0:00:37]} Rxd6 {[%emt 0:00:11]} 38. Bxd6 {[%emt 0:00:01]} Kxd6 {[%emt 0:00:08]} 39. Ke3 {[%emt 0:00:16]} Ke5 {[%emt 0:00:20]} 40. b4 {[%emt 0:00:28]} Kd5 {[%emt 0:00:43]} 41. Kd3 {[%emt 0:00:12]} g6 {[%emt 0:00:42]} 42. a4 {[%emt 0:00:13]} Kc6 {[%emt 0:00:27]} 43. Kd4 {[%emt 0:00:19]} f5 {[%emt 0:01:02]} 44. Ke5 {[%emt 0:00:28]} h6 {[%emt 0:00:48]} 45. Kf6 {[%emt 0:00:12]} f4 {[%emt 0:00:41]} 46. Kxg6 {[%emt 0:00:08]} Kd5 {[%emt 0:00:34]} 47. Kf5 {[%emt 0:00:23]} Kc4 {[%emt 0:00:26]} 48. a5 {[%emt 0:00:19]} Kb5 {[%emt 0:00:38]} 49. Kxf4 {[%emt 0:00:05]} Ka6 {[%emt 0:00:42]} 50. g4 {[%emt 0:00:06]} Kb5 {[%emt 0:00:19]} 51. h4 {[%emt 0:00:06]} 1-0

[Event "19th IPCA WCC 2019"]
[Site "Ruzomberok"]
[Date "2019.07.02"]
[Round "5.13"]
[White "Pamarthi Audietya Aazadh"]
[Black "Jennitha, Anto K."]
[Result "0-1"]
[ECO "D02"]
[WhiteElo "1346"]
[BlackElo "1972"]
[Annotator "NA"]
[PlyCount "94"]
[EventDate "2019.06.28"]
[EventType "swiss"]
[EventCountry "SVK"]
[SourceTitle "playchess.com"]
[Source "ChessBase"]
[SourceQuality "1"]
[TimeControl "5400+30"]

1. d4 {[%emt 0:00:00]} d5 {[%emt 0:00:00]} 2. Nf3 {[%emt 0:03:15]} Nf6 {[%emt 0:00:00]} 3. Bf4 {[%emt 0:00:08]} Nh5 {[%emt 0:00:59]} 4. Bg3 {[%emt 0:02:15]} Nxg3 {[%emt 0:00:20]} 5. hxg3 {[%emt 0:00:09]} e6 {[%emt 0:01:47]} 6. e3 {[%emt 0:00:13]} Nd7 {[%emt 0:04:53]} 7. Bd3 {[%emt 0:00:15]} f5 {[%emt 0:04:44]} 8. Nbd2 {[%emt 0:00:48]} a6 {[%emt 0:01:46]} 9. Ne5 {[%emt 0:02:31]} Nxe5 {[%emt 0:01:05]} 10. dxe5 {[%emt 0:00:10]} g6 {[%emt 0:02:23]} 11. a3 {[%emt 0:01:15]} c5 {[%emt 0:02:43]} 12. c3 {[%emt 0:00:27]} Qc7 {[%emt 0:00:44]} 13. f4 {[%emt 0:00:42]} c4 {[%emt 0:00:20]} 14. Bc2 {[%emt 0:03:06]} Qb6 {[%emt 0:00:25]} 15. Ba4+ {[%emt 0:01:06]} Kf7 {[%emt 0:02:49]} 16. Kf2 {[%emt 0:02:01]} Qxb2 {[%emt 0:02:30]} 17. Qc1 {[%emt 0:00:41]} Qb6 {[%emt 0:01:06]} 18. Nf3 {[%emt 0:00:45]} Qa5 {[%emt 0:02:30]} 19. Bd1 {[%emt 0:00:26]} Bd7 {[%emt 0:01:05]} 20. Be2 {[%emt 0:00:27]} Kg7 {[%emt 0:02:01]} 21. Nd4 {[%emt 0:01:14]} h5 {[%emt 0:02:34]} 22. Qb2 {[%emt 0:00:36]} b5 {[%emt 0:02:24]} 23. a4 {[%emt 0:00:49]} b4 24. cxb4 {[%emt 0:00:47]} Bxb4 {[%emt 0:01:06]} 25. Rhb1 {[%emt 0:07:11]} Rhb8 {[%emt 0:02:05]} 26. Qc2 {[%emt 0:00:20]} Bc5 {[%emt 0:05:35]} 27. Bd1 {[%emt 0:00:38]} Rb4 {[%emt 0:07:52]} 28. Rxb4 {[%emt 0:00:35]} Bxb4 {[%emt 0:00:06]} 29. Rb1 {[%emt 0:01:50]} Rb8 {[%emt 0:00:10]} 30. Kf3 {[%emt 0:01:14]} Rb6 {[%emt 0:02:13]} 31. Ne2 {[%emt 0:00:52]} Kf7 {[%emt 0:03:17]} 32. Nd4 {[%emt 0:00:26]} Ke7 {[%emt 0:01:13]} 33. Rb2 {[%emt 0:00:52]} Bc5 {[%emt 0:04:36]} 34. Rxb6 {[%emt 0:02:25]} Qxb6 {[%emt 0:00:16]} 35. Qc3 {[%emt 0:00:32]} Qb1 {[%emt 0:04:57]} 36. Qc2 {[%emt 0:00:34]} Qb4 {[%emt 0:00:42]} 37. Kf2 {[%emt 0:13:42]} Bxd4 {[%emt 0:04:09]} 38. exd4 {[%emt 0:00:17]} Kd8 {[%emt 0:00:23]} 39. Ke2 {[%emt 0:00:34]} Kc7 {[%emt 0:00:13]} 40. a5 {[%emt 0:11:42]} Qxa5 {[%emt 0:01:20]} 41. Kf2 {[%emt 0:01:12]} Qb4 {[%emt 0:00:29]} 42. Kg1 {[%emt 0:00:06]} a5 {[%emt 0:00:42]} 43. Kh2 {[%emt 0:00:04]} a4 {[%emt 0:00:31]} 44. Qa2 {[%emt 0:00:40]} a3 {[%emt 0:00:11]} 45. Bc2 {[%emt 0:00:04]} Qb2 {[%emt 0:00:42]} 46. Bb1 {[%emt 0:00:13]} Qxa2 {[%emt 0:00:03]} 47. Bxa2 c3 0-1

[Event "19th IPCA WCC 2019"]
[Site "Ruzomberok"]
[Date "2019.07.02"]
[Round "5.14"]
[White "Wielecki, Zygmunt"]
[Black "Roehrig, Uwe"]
[Result "1/2-1/2"]
[ECO "C11"]
[WhiteElo "2145"]
[BlackElo "1802"]
[Annotator "NA"]
[PlyCount "69"]
[EventDate "2019.06.28"]
[EventType "swiss"]
[EventCountry "SVK"]
[SourceTitle "playchess.com"]
[Source "ChessBase"]
[SourceQuality "1"]
[TimeControl "5400+30"]

1. e4 {[%emt 0:00:00]} e6 {[%emt 0:00:00]} 2. d4 {[%emt 0:00:47]} d5 {[%emt 0:00:11]} 3. Nc3 {[%emt 0:00:14]} Nf6 {[%emt 0:00:27]} 4. Bg5 {[%emt 0:00:21]} dxe4 {[%emt 0:01:19]} 5. Nxe4 {[%emt 0:00:21]} Nbd7 {[%emt 0:00:50]} 6. Nf3 {[%emt 0:03:00]} Be7 {[%emt 0:00:46]} 7. Bxf6 {[%emt 0:02:40]} Nxf6 {[%emt 0:01:41]} 8. Bd3 {[%emt 0:13:07]} Bd7 {[%emt 0:03:09]} 9. Ne5 {[%emt 0:04:34]} c5 {[%emt 0:14:48]} 10. dxc5 {[%emt 0:08:20]} Bxc5 {[%emt 0:01:02]} 11. O-O {[%emt 0:04:48]} Nxe4 {[%emt 0:07:01]} 12. Bxe4 {[%emt 0:01:33]} Qc7 {[%emt 0:01:11]} 13. Nxd7 {[%emt 0:05:30]} Qxd7 {[%emt 0:00:31]} 14. Qf3 {[%emt 0:00:55]} O-O-O {[%emt 0:02:39]} 15. b4 {[%emt 0:03:50]} Bd4 {[%emt 0:02:54]} 16. Rad1 {[%emt 0:00:29]} Qc7 {[%emt 0:00:32]} 17. c4 {[%emt 0:00:27]} f5 {[%emt 0:01:29]} 18. Bd3 {[%emt 0:04:14]} g6 {[%emt 0:02:36]} 19. c5 {[%emt 0:04:10]} e5 {[%emt 0:04:58]} 20. Bb5 {[%emt 0:01:39]} e4 {[%emt 0:02:06]} 21. Qb3 {[%emt 0:00:21]} Kb8 {[%emt 0:02:06]} 22. Qe6 {[%emt 0:02:26]} Qe5 {[%emt 0:01:40]} 23. Qc4 {[%emt 0:02:47]} e3 {[%emt 0:01:39]} 24. fxe3 {[%emt 0:00:57]} Bxe3+ {[%emt 0:03:06]} 25. Kh1 {[%emt 0:00:17]} Rd4 {[%emt 0:01:43]} 26. Rxd4 {[%emt 0:00:48]} Qxd4 {[%emt 0:00:42]} 27. Qe6 {[%emt 0:00:52]} Rd8 {[%emt 0:04:24]} 28. c6 {[%emt 0:08:31]} a6 {[%emt 0:06:04]} 29. Bxa6 {[%emt 0:06:50]} bxa6 {[%emt 0:09:09]} 30. Qe7 {[%emt 0:00:23]} Qb6 {[%emt 0:00:18]} 31. c7+ {[%emt 0:00:40]} Qxc7 {[%emt 0:00:08]} 32. Qxe3 {[%emt 0:00:11]} Qd6 {[%emt 0:00:49]} 33. a3 {[%emt 0:02:44]} Kb7 {[%emt 0:06:23]} 34. h3 {[%emt 0:00:23]} Qd3 {[%emt 0:01:28]} 35. Qf2 1/2-1/2

[Event "19th IPCA WCC 2019"]
[Site "Ruzomberok"]
[Date "2019.07.02"]
[Round "5.16"]
[White "Matana, Zoran"]
[Black "Pilimon, Zbigniew"]
[Result "1-0"]
[ECO "D37"]
[WhiteElo "1818"]
[BlackElo "1670"]
[Annotator "NA"]
[PlyCount "114"]
[EventDate "2019.06.28"]
[EventType "swiss"]
[EventCountry "SVK"]
[SourceTitle "playchess.com"]
[Source "ChessBase"]
[SourceQuality "1"]
[TimeControl "5400+30"]

1. d4 {[%emt 0:00:00]} Nf6 {[%emt 0:00:00]} 2. c4 {[%emt 0:00:00]} e6 {[%emt 0:00:01]} 3. Nc3 {[%emt 0:00:00]} d5 {[%emt 0:01:01]} 4. Nf3 {[%emt 0:00:17]} Be7 {[%emt 0:00:20]} 5. Bf4 {[%emt 0:01:02]} c6 {[%emt 0:04:35]} 6. e3 {[%emt 0:00:42]} Nbd7 {[%emt 0:00:36]} 7. Be2 {[%emt 0:01:17]} O-O {[%emt 0:00:22]} 8. O-O {[%emt 0:00:32]} Re8 {[%emt 0:01:31]} 9. Qc2 {[%emt 0:00:43]} Nh5 {[%emt 0:01:48]} 10. Bg3 {[%emt 0:00:22]} Nxg3 {[%emt 0:01:16]} 11. hxg3 {[%emt 0:00:03]} Nf8 {[%emt 0:02:17]} 12. Rad1 {[%emt 0:00:46]} Ng6 {[%emt 0:01:40]} 13. e4 {[%emt 0:00:28]} dxe4 {[%emt 0:00:52]} 14. Nxe4 {[%emt 0:00:17]} Bd7 {[%emt 0:05:49]} 15. Ne5 {[%emt 0:01:56]} Nxe5 {[%emt 0:01:50]} 16. dxe5 {[%emt 0:00:18]} c5 {[%emt 0:01:09]} 17. Nd6 {[%emt 0:02:42]} Bxd6 {[%emt 0:00:40]} 18. Rxd6 {[%emt 0:00:04]} Qc7 {[%emt 0:06:16]} 19. Rfd1 {[%emt 0:04:12]} Bc6 {[%emt 0:01:16]} 20. Qd2 {[%emt 0:00:33]} h6 {[%emt 0:21:33]} 21. Bd3 {[%emt 0:02:36]} Re7 {[%emt 0:03:09]} 22. Bc2 {[%emt 0:00:38]} Rae8 {[%emt 0:00:28]} 23. Qd3 {[%emt 0:01:11]} g6 {[%emt 0:00:18]} 24. f3 {[%emt 0:00:49]} b6 {[%emt 0:05:28]} 25. Kf2 {[%emt 0:00:23]} Rc8 {[%emt 0:01:24]} 26. g4 {[%emt 0:01:03]} Ree8 {[%emt 0:00:35]} 27. Qe3 {[%emt 0:01:24]} Kg7 {[%emt 0:00:21]} 28. Qd2 {[%emt 0:09:41]} Qe7 {[%emt 0:01:30]} 29. Kg3 {[%emt 0:00:22]} Rc7 {[%emt 0:04:11]} 30. a3 {[%emt 0:01:01]} Rh8 {[%emt 0:05:03]} 31. Qf4 {[%emt 0:05:54]} Re8 {[%emt 0:07:27]} 32. Qd2 {[%emt 0:03:21]} Rh8 {[%emt 0:01:04]} 33. b4 {[%emt 0:04:19]} cxb4 {[%emt 0:01:10]} 34. axb4 {[%emt 0:00:10]} Rhc8 {[%emt 0:01:25]} 35. Bb3 {[%emt 0:00:18]} Qg5 {[%emt 0:03:14]} 36. f4 {[%emt 0:00:56]} Qe7 {[%emt 0:00:14]} 37. Qd4 {[%emt 0:00:58]} Kh7 {[%emt 0:01:34]} 38. Rd3 {[%emt 0:02:46]} Kg7 {[%emt 0:00:33]} 39. Ba2 {[%emt 0:01:38]} Be8 {[%emt 0:03:06]} 40. b5 {[%emt 0:07:42]} Kh7 {[%emt 0:04:20]} 41. Kh3 {[%emt 0:01:15]} Kg7 {[%emt 0:00:54]} 42. Bb3 {[%emt 0:01:01]} Kh7 {[%emt 0:00:24]} 43. g3 {[%emt 0:12:31]} Kg7 {[%emt 0:00:24]} 44. Kg2 {[%emt 0:01:39]} Kh7 {[%emt 0:01:24]} 45. Rd1 {[%emt 0:00:20]} Kg7 {[%emt 0:00:36]} 46. Rh1 {[%emt 0:00:24]} Rd7 {[%emt 0:04:21]} 47. Rd1 {[%emt 0:06:57]} Rdc7 {[%emt 0:00:14]} 48. Kf2 {[%emt 0:00:44]} Kh7 {[%emt 0:00:44]} 49. Qe4 {[%emt 0:01:06]} Kg7 {[%emt 0:00:29]} 50. R1d4 {[%emt 0:06:15]} Kh7 {[%emt 0:00:44]} 51. Ba2 {[%emt 0:02:56]} Kg7 {[%emt 0:00:41]} 52. Bb1 {[%emt 0:00:46]} Rc5 {[%emt 0:01:06]} 53. Bd3 {[%emt 0:03:20]} R5c7 {[%emt 0:00:52]} 54. f5 {[%emt 0:01:28]} gxf5 {[%emt 0:00:26]} 55. gxf5 {[%emt 0:00:03]} exf5 {[%emt 0:00:38]} 56. Qxf5 {[%emt 0:01:04]} Qg5 {[%emt 0:00:15]} 57. Rg4 Ra8 1-0

[Event "19th IPCA WCC 2019"]
[Site "Ruzomberok"]
[Date "2019.07.02"]
[Round "5.17"]
[White "Kaydanovich, Marina"]
[Black "Samarth J Rao"]
[Result "1/2-1/2"]
[ECO "D30"]
[WhiteElo "1760"]
[BlackElo "1593"]
[Annotator "NA"]
[PlyCount "196"]
[EventDate "2019.06.28"]
[EventType "swiss"]
[EventCountry "SVK"]
[SourceTitle "playchess.com"]
[Source "ChessBase"]
[SourceQuality "1"]
[TimeControl "5400+30"]

1. d4 {[%emt 0:00:00]} d5 {[%emt 0:00:00]} 2. c4 {[%emt 0:00:00]} e6 {[%emt 0:00:04]} 3. Nf3 {[%emt 0:01:16]} Nf6 {[%emt 0:00:11]} 4. Bg5 {[%emt 0:00:28]} Be7 {[%emt 0:00:20]} 5. e3 {[%emt 0:00:26]} O-O {[%emt 0:00:31]} 6. Bd3 {[%emt 0:00:31]} c6 {[%emt 0:00:49]} 7. O-O {[%emt 0:00:41]} Ne4 {[%emt 0:01:51]} 8. Bxe7 {[%emt 0:05:30]} Qxe7 {[%emt 0:00:04]} 9. Qc2 {[%emt 0:00:21]} f5 {[%emt 0:01:02]} 10. Ne5 {[%emt 0:02:37]} Nd7 {[%emt 0:02:28]} 11. Nxd7 {[%emt 0:02:04]} Bxd7 {[%emt 0:00:28]} 12. f3 {[%emt 0:03:41]} Ng5 {[%emt 0:03:42]} 13. Nc3 {[%emt 0:05:21]} Rf6 {[%emt 0:01:32]} 14. Rae1 {[%emt 0:08:09]} Rh6 {[%emt 0:18:16]} 15. a3 {[%emt 0:10:41]} Qd6 16. f4 {[%emt 0:07:29]} Ne4 {[%emt 0:03:49]} 17. Bxe4 {[%emt 0:06:32]} fxe4 {[%emt 0:04:12]} 18. c5 {[%emt 0:01:07]} Qe7 {[%emt 0:00:31]} 19. b4 {[%emt 0:00:50]} Rf8 {[%emt 0:00:56]} 20. Rf2 {[%emt 0:01:54]} Rff6 {[%emt 0:03:43]} 21. a4 {[%emt 0:04:44]} Rfg6 {[%emt 0:00:57]} 22. g3 {[%emt 0:04:07]} e5 23. fxe5 {[%emt 0:09:35]} Bg4 {[%emt 0:04:00]} 24. Ne2 {[%emt 0:01:29]} Bf3 {[%emt 0:00:33]} 25. Kf1 {[%emt 0:00:55]} Qd7 {[%emt 0:02:30]} 26. Ng1 {[%emt 0:00:23]} Qg4 {[%emt 0:04:51]} 27. Ra1 {[%emt 0:06:40]} Rg5 {[%emt 0:05:41]} 28. Ra2 {[%emt 0:06:53]} Rf5 {[%emt 0:00:19]} 29. Ke1 {[%emt 0:00:54]} Qg5 {[%emt 0:01:02]} 30. Qd2 {[%emt 0:00:48]} Rg6 {[%emt 0:01:52]} 31. Nxf3 {[%emt 0:03:48]} exf3 {[%emt 0:00:07]} 32. Kd1 {[%emt 0:01:18]} h5 {[%emt 0:00:00]} 33. Kc2 {[%emt 0:00:31]} h4 34. gxh4 {[%emt 0:00:25]} Qxh4 {[%emt 0:00:30]} 35. Kc3 {[%emt 0:00:19]} Qe4 {[%emt 0:00:13]} 36. Qd3 {[%emt 0:01:53]} Rfg5 37. Qxe4 {[%emt 0:03:13]} dxe4 {[%emt 0:01:50]} 38. Kc4 {[%emt 0:00:16]} Rg2 {[%emt 0:00:08]} 39. d5 {[%emt 0:00:11]} Rxf2 40. Rxf2 {[%emt 0:00:02]} Rg2 {[%emt 0:00:38]} 41. Rf1 {[%emt 0:00:32]} Rd2 {[%emt 0:01:14]} 42. dxc6 {[%emt 0:00:43]} bxc6 {[%emt 0:00:38]} 43. b5 {[%emt 0:00:11]} cxb5+ {[%emt 0:06:21]} 44. axb5 {[%emt 0:01:22]} Kf7 45. b6 axb6 {[%emt 0:01:18]} 46. cxb6 {[%emt 0:00:30]} Ke6 {[%emt 0:00:49]} 47. Rb1 {[%emt 0:00:14]} f2 {[%emt 0:00:33]} 48. b7 {[%emt 0:00:35]} Rb2 49. Rxb2 {[%emt 0:01:25]} f1=Q+ {[%emt 0:00:28]} 50. Kb4 {[%emt 0:00:10]} Qf8+ {[%emt 0:00:05]} 51. Kb5 {[%emt 0:00:54]} Qb8 {[%emt 0:00:47]} 52. Ka6 {[%emt 0:00:23]} Kxe5 {[%emt 0:00:29]} 53. Rb5+ {[%emt 0:00:21]} Kd6 {[%emt 0:00:40]} 54. h4 {[%emt 0:00:28]} Kd7 {[%emt 0:00:39]} 55. h5 {[%emt 0:00:31]} Kc6 {[%emt 0:03:01]} 56. Rb6+ {[%emt 0:01:07]} Kc5 {[%emt 0:00:33]} 57. Rg6 {[%emt 0:00:24]} Qe5 {[%emt 0:01:12]} 58. Ka7 {[%emt 0:00:24]} Qa1+ {[%emt 0:00:16]} 59. Ra6 {[%emt 0:00:03]} Qh1 {[%emt 0:04:13]} 60. b8=Q {[%emt 0:00:10]} Kc4 {[%emt 0:00:15]} 61. Rc6+ {[%emt 0:00:43]} Kd3 {[%emt 0:00:10]} 62. Qb3+ {[%emt 0:00:21]} Ke2 {[%emt 0:00:26]} 63. Rc5 {[%emt 0:01:09]} Qa1+ {[%emt 0:00:24]} 64. Kb7 {[%emt 0:00:32]} Qf6 {[%emt 0:00:31]} 65. Qc3 {[%emt 0:00:27]} Qf7+ {[%emt 0:00:47]} 66. Rc7 {[%emt 0:00:22]} Qxh5 {[%emt 0:01:14]} 67. Rxg7 {[%emt 0:00:29]} Qd5+ {[%emt 0:00:24]} 68. Kc7 {[%emt 0:00:17]} Kf2 {[%emt 0:01:28]} 69. Rd7 {[%emt 0:00:27]} Qe6 {[%emt 0:03:55]} 70. Qd4 {[%emt 0:00:54]} Kf3 {[%emt 0:00:50]} 71. Rd6 {[%emt 0:00:29]} Qe7+ {[%emt 0:00:18]} 72. Kc6 {[%emt 0:00:26]} Qe8+ {[%emt 0:00:23]} 73. Kd5 {[%emt 0:00:47]} Qg8+ 74. Re6 {[%emt 0:00:19]} Qd8+ {[%emt 0:01:09]} 75. Ke5 {[%emt 0:00:30]} Qg5+ {[%emt 0:00:16]} 76. Kd6 {[%emt 0:00:09]} Qd8+ {[%emt 0:00:06]} 77. Kc5 {[%emt 0:00:18]} Qa5+ {[%emt 0:00:55]} 78. Kc6 {[%emt 0:00:08]} Qa8+ {[%emt 0:00:25]} 79. Kd7 {[%emt 0:00:22]} Qb7+ {[%emt 0:00:23]} 80. Ke8 {[%emt 0:00:40]} Qb5+ {[%emt 0:00:55]} 81. Ke7 {[%emt 0:00:47]} Qb7+ {[%emt 0:00:34]} 82. Kf6 {[%emt 0:00:46]} Qh7 {[%emt 0:00:18]} 83. Re5 {[%emt 0:00:40]} Qh6+ {[%emt 0:00:23]} 84. Ke7 {[%emt 0:00:16]} Qg7+ {[%emt 0:07:04]} 85. Kd6 {[%emt 0:00:15]} Qf8+ {[%emt 0:00:21]} 86. Kd7 {[%emt 0:00:58]} Qf7+ {[%emt 0:00:19]} 87. Re7 {[%emt 0:00:13]} Qf5+ {[%emt 0:00:18]} 88. Kd6 {[%emt 0:00:41]} Qg6+ {[%emt 0:02:52]} 89. Re6 {[%emt 0:00:17]} Qh7 90. Qf6+ {[%emt 0:01:10]} Kxe3 {[%emt 0:02:03]} 91. Qh6+ {[%emt 0:00:03]} Qxh6 92. Rxh6 {[%emt 0:00:03]} Kd2 {[%emt 0:00:09]} 93. Rh2+ {[%emt 0:00:52]} Kd3 {[%emt 0:00:47]} 94. Ke5 {[%emt 0:00:22]} e3 {[%emt 0:00:09]} 95. Rh3 {[%emt 0:01:00]} Kd2 {[%emt 0:00:17]} 96. Ke4 {[%emt 0:00:24]} e2 {[%emt 0:00:07]} 97. Rd3+ {[%emt 0:00:32]} Kc2 {[%emt 0:00:11]} 98. Re3 {[%emt 0:00:18]} Kd2 {[%emt 0:00:03]} 1/2-1/2

[Event "19th IPCA WCC 2019"]
[Site "Ruzomberok"]
[Date "2019.07.02"]
[Round "5.18"]
[White "Felegyi, Karoly"]
[Black "Angappan A"]
[Result "1-0"]
[ECO "C42"]
[WhiteElo "1674"]
[BlackElo "1267"]
[Annotator "NA"]
[PlyCount "107"]
[EventDate "2019.06.28"]
[EventType "swiss"]
[EventCountry "SVK"]
[SourceTitle "playchess.com"]
[Source "ChessBase"]
[SourceQuality "1"]
[TimeControl "5400+30"]

1. e4 {[%emt 0:00:00]} e5 {[%emt 0:00:00]} 2. Nf3 {[%emt 0:00:00]} Nf6 {[%emt 0:00:00]} 3. Nc3 {[%emt 0:00:32]} Bb4 {[%emt 0:00:06]} 4. Bc4 {[%emt 0:02:08]} O-O {[%emt 0:00:15]} 5. d3 {[%emt 0:00:27]} Nc6 {[%emt 0:03:08]} 6. O-O {[%emt 0:00:31]} Bxc3 {[%emt 0:01:28]} 7. bxc3 {[%emt 0:00:07]} d5 {[%emt 0:00:24]} 8. exd5 {[%emt 0:03:44]} Nxd5 {[%emt 0:00:16]} 9. Bxd5 {[%emt 0:01:09]} Qxd5 {[%emt 0:00:11]} 10. c4 {[%emt 0:02:52]} Qd6 {[%emt 0:00:28]} 11. a4 {[%emt 0:00:26]} Bg4 {[%emt 0:00:24]} 12. Ba3 {[%emt 0:00:31]} Nb4 {[%emt 0:01:02]} 13. c3 {[%emt 0:01:42]} e4 {[%emt 0:04:05]} 14. Bxb4 {[%emt 0:03:19]} c5 {[%emt 0:01:05]} 15. dxe4 {[%emt 0:07:32]} Qxd1 {[%emt 0:00:30]} 16. Rfxd1 {[%emt 0:00:21]} cxb4 {[%emt 0:00:25]} 17. cxb4 {[%emt 0:00:06]} Rfe8 {[%emt 0:00:31]} 18. Rd4 {[%emt 0:00:32]} Rad8 {[%emt 0:04:22]} 19. Rad1 {[%emt 0:00:48]} Rc8 {[%emt 0:01:09]} 20. c5 {[%emt 0:01:38]} f6 {[%emt 0:04:33]} 21. h3 {[%emt 0:00:57]} Be6 {[%emt 0:00:20]} 22. R1d3 {[%emt 0:01:54]} Ba2 {[%emt 0:01:44]} 23. Nd2 {[%emt 0:06:37]} a5 {[%emt 0:02:36]} 24. Nc4 {[%emt 0:07:55]} Bb1 {[%emt 0:05:25]} 25. Rb3 {[%emt 0:03:17]} Bxe4 {[%emt 0:06:03]} 26. Nd6 {[%emt 0:00:56]} Bc2 {[%emt 0:03:50]} 27. Rb2 {[%emt 0:00:44]} Bxa4 {[%emt 0:00:46]} 28. Nxe8 {[%emt 0:00:37]} Bxe8 {[%emt 0:00:21]} 29. bxa5 {[%emt 0:00:21]} Rxc5 {[%emt 0:00:25]} 30. Rxb7 {[%emt 0:01:42]} Rxa5 31. Rb8 Kf7 {[%emt 0:02:11]} 32. Rdd8 {[%emt 0:00:43]} Re5 {[%emt 0:01:09]} 33. g4 {[%emt 0:08:13]} Re6 {[%emt 0:02:37]} 34. Kh2 {[%emt 0:00:30]} Re2 {[%emt 0:01:54]} 35. Kg3 {[%emt 0:00:08]} Re5 {[%emt 0:01:37]} 36. h4 {[%emt 0:01:57]} Re6 {[%emt 0:09:15]} 37. Ra8 {[%emt 0:00:08]} Re5 {[%emt 0:01:38]} 38. Rdc8 {[%emt 0:01:03]} Re4 {[%emt 0:02:13]} 39. Ra7+ {[%emt 0:01:01]} Re7 {[%emt 0:00:44]} 40. Rcc7 {[%emt 0:00:30]} Rxc7 41. Rxc7+ Kg6 {[%emt 0:01:31]} 42. h5+ {[%emt 0:01:21]} Kh6 {[%emt 0:00:31]} 43. f4 {[%emt 0:00:27]} g6 {[%emt 0:02:18]} 44. hxg6 {[%emt 0:01:22]} Bxg6 {[%emt 0:09:08]} 45. f5 {[%emt 0:00:14]} Be8 46. Kf4 Ba4 {[%emt 0:01:47]} 47. Rf7 {[%emt 0:00:37]} Bd1 {[%emt 0:03:24]} 48. Rxf6+ {[%emt 0:00:08]} Kg7 {[%emt 0:00:10]} 49. Rd6 {[%emt 0:00:02]} Be2 {[%emt 0:00:18]} 50. g5 {[%emt 0:00:10]} Bh5 {[%emt 0:00:40]} 51. Ke5 {[%emt 0:00:30]} Bf7 {[%emt 0:00:40]} 52. Rd7 {[%emt 0:00:39]} Kg8 {[%emt 0:00:53]} 53. Kf6 {[%emt 0:00:14]} Ba2 {[%emt 0:02:34]} 54. Rd8# 1-0